fUST/lending_fUST_20250410
["ID","MTS","AMOUNT","RATE_DAILY","PERIOD"]
[357630744,1744254633127,-500.0,0.00016867,2]
[357630745,1744254633138,-158.0,0.00017,2]
[357630746,1744254633148,-158.70407761,0.00017,2]
[357630747,1744254633159,-165.55115514,0.00017,2]
[357630748,1744254633170,-500.0,0.000171,2]
[357630749,1744254633182,-500.0,0.000171,2]
[357630750,1744254633192,-401.0,0.00017142,2]
[357630751,1744254633204,-501.98613005,0.000172,2]
[357630752,1744254633215,-500.0,0.000172,2]
[357630753,1744254633226,-500.0,0.000172,2]
[357630754,1744254633237,-501.84411396,0.000172,2]
[357630755,1744254633249,-500.0,0.000172,2]
[357630756,1744254633262,-165.55115514,0.00017274,2]
[357630757,1744254633273,-151.0,0.00017316,2]
[357630758,1744254633284,-151.0,0.00017316,2]
[357630759,1744254633294,-151.0,0.00017316,2]
[357630760,1744254633306,-303.650505,0.00017316,2]
[357630761,1744254633320,-303.650505,0.00017316,2]
[357630762,1744254633331,-517.0017774,0.00017316,2]
[357630763,1744254633341,-500.0,0.000174,2]
[357630764,1744254633352,-500.0,0.000174,2]
[357630765,1744254633362,-500.0,0.000174,2]
[357630766,1744254633373,-500.0,0.000174,2]
[357630767,1744254633383,-500.0,0.000174,2]
[357630768,1744254633394,-189.142,0.00017456,2]
[357630769,1744254633405,-150.099,0.00017456,2]
[357630770,1744254633415,-150.092,0.00017456,2]
[357630771,1744254633426,-150.478,0.00017456,2]
[357630772,1744254633436,-543.0,0.00017456,2]
[357630773,1744254633447,-706.0,0.00017456,2]
[357630774,1744254633458,-2252.0,0.00017456,2]
[357630775,1744254633470,-500.0,0.00017517,2]
[357630776,1744254633482,-500.0,0.00017517,2]
[357630777,1744254633494,-503.0394519,0.00017517,2]
[357630778,1744254633504,-501.53850153,0.00017517,2]
[357630779,1744254633516,-500.0,0.00017517,2]
[357630780,1744254633527,-500.0,0.00017517,2]
[357630781,1744254633538,-500.0,0.00017517,2]
[357630782,1744254633549,-500.0,0.00017517,2]
[357630783,1744254633560,-500.0,0.00017517,2]
[357630784,1744254633570,-151.0,0.000176,2]
[357630785,1744254633582,-151.0,0.000176,2]
[357630786,1744254633593,-151.0,0.000176,2]
[357630787,1744254633603,-151.0,0.000176,2]
[357630788,1744254633614,-151.0,0.000176,2]
[357630789,1744254633624,-151.0,0.000176,2]
[357630790,1744254633635,-303.650505,0.000176,2]
[357630791,1744254633648,-151.0,0.000176,2]
[357630792,1744254633659,-303.650505,0.000176,2]
[357630793,1744254633670,-303.650505,0.000176,2]
[357630794,1744254633683,-303.650505,0.000176,2]
[357630795,1744254633694,-303.650505,0.000176,2]
[357630796,1744254633705,-303.650505,0.000176,2]
[357630797,1744254633716,-151.0,0.000176,2]
[357630798,1744254633729,-151.0,0.000176,2]
[357630799,1744254633741,-191.172628,0.000176,2]
[357630800,1744254633751,-207.4,0.00017659,2]
[357630801,1744254633763,-420.0,0.00017707,2]
[357630802,1744254633774,-600.0,0.00017718,2]
[357630803,1744254633785,-151.0,0.00017728,2]
[357630804,1744254633796,-151.0,0.00017728,2]
[357630805,1744254633807,-273.805049,0.00017728,2]
[357630806,1744254633818,-303.650505,0.00017728,2]
[357630807,1744254633829,-303.650505,0.00017728,2]
[357630808,1744254633839,-151.0,0.00017728,2]
[357630809,1744254633851,-167.694079,0.00017728,2]
[357630810,1744254633861,-151.0,0.00017728,2]
[357630811,1744254633872,-151.0,0.00017728,2]
[357630812,1744254633882,-610.294005,0.00017728,2]
[357630813,1744254633893,-610.294005,0.00017728,2]
[357630814,1744254633903,-151.0,0.00017728,2]
[357630815,1744254633912,-637.97302,0.00017728,2]
[357630816,1744254633923,-637.97302,0.00017728,2]
[357630817,1744254633934,-151.0,0.00017728,2]
[357630818,1744254633944,-151.0,0.00017728,2]
[357630819,1744254633954,-890.311179,0.00017728,2]
[357630820,1744254633965,-900.641796,0.00017728,2]
[357630821,1744254633975,-900.641796,0.00017728,2]
[357630822,1744254633986,-151.0,0.00017728,2]
[357630823,1744254633998,-151.0,0.00017728,2]
[357630824,1744254634009,-247.963414,0.00017728,2]
[357630825,1744254634019,-151.0,0.00017728,2]
[357630826,1744254634029,-264.641649,0.00017728,2]
[357630827,1744254634040,-264.641649,0.00017728,2]
[357630828,1744254634051,-151.0,0.00017728,2]
[357630829,1744254634062,-175.173203,0.00017797,2]
[357630830,1744254634072,-157.284957,0.00017797,2]
[357630831,1744254634082,-632.0,0.000178,2]
[357630832,1744254634094,-500.0,0.00017899,2]
[357630833,1744254634104,-13078.72658658,0.000179,2]
[357630834,1744254634115,-151.0,0.000179,2]
[357630835,1744254634125,-151.0,0.000179,2]
[357630836,1744254634136,-151.0,0.000179,2]
[357630837,1744254634146,-890.311179,0.000179,2]
[357630838,1744254634157,-151.0,0.000179,2]
[357630839,1744254634167,-151.0,0.000179,2]
[357630840,1744254634178,-151.0,0.000179,2]
[357630841,1744254634189,-151.0,0.000179,2]
[357630842,1744254634200,-151.0,0.000179,2]
[357630843,1744254634210,-151.0,0.000179,2]
[357630844,1744254634221,-151.0,0.000179,2]
[357630845,1744254634232,-406.227427,0.000179,2]
[357630846,1744254634242,-406.227427,0.000179,2]
[357630847,1744254634256,-151.0,0.000179,2]
[357630848,1744254634266,-151.0,0.000179,2]
[357630849,1744254634277,-151.0,0.000179,2]
[357630850,1744254634287,-151.0,0.000179,2]
[357630851,1744254634297,-151.0,0.000179,2]
[357630852,1744254634307,-151.0,0.000179,2]
[357630853,1744254634317,-151.0,0.000179,2]
[357630854,1744254634328,-409.243856,0.000179,2]
[357630855,1744254634338,-409.243856,0.000179,2]
[357630856,1744254634349,-600.0,0.00017902,2]
[357630857,1744254634359,-500.0,0.00017998,2]
[357630858,1744254634369,-500.0,0.00017998,2]
[357630859,1744254634379,-500.0,0.00017998,2]
[357630860,1744254634389,-500.0,0.00017998,2]
[357630861,1744254634399,-500.0,0.00017999,2]
[357630862,1744254634409,-153.436523,0.00017999,2]
[357630863,1744254634419,-151.0,0.00017999,2]
[357630864,1744254634429,-303.650505,0.00017999,2]
[357630865,1744254634439,-303.650505,0.00017999,2]
[357630866,1744254634448,-303.650505,0.00017999,2]
[357630867,1744254634458,-303.650505,0.00017999,2]
[357630868,1744254634468,-156.089693,0.00017999,2]
[357630869,1744254634477,-151.0,0.00017999,2]
[357630870,1744254634487,-178.47009682,0.00017999,2]
[357630871,1744254634498,-500.0,0.00017999,2]
[357630872,1744254634508,-166.79932757,0.00017999,2]
[357630873,1744254634518,-151.0,0.00017999,2]
[357630874,1744254634528,-151.0,0.00017999,2]
[357630875,1744254634539,-150.8844514,0.00017999,2]
[357630876,1744254634549,-190.89059079,0.00017999,2]
[357630877,1744254634560,-610.294005,0.00017999,2]
[357630878,1744254634571,-610.294005,0.00017999,2]
[357630879,1744254634581,-610.294005,0.00017999,2]
[357630880,1744254634592,-610.294005,0.00017999,2]
[357630881,1744254634603,-230.71197758,0.00017999,2]
[357630882,1744254634616,-151.0,0.00017999,2]
[357630883,1744254634627,-151.77373422,0.00017999,2]
[357630884,1744254634638,-151.0,0.00017999,2]
[357630885,1744254634652,-637.97302,0.00017999,2]
[357630886,1744254634662,-637.97302,0.00017999,2]
[357630887,1744254634837,-637.97302,0.00017999,2]
[357630888,1744254634853,-637.97302,0.00017999,2]
[357630889,1744254634863,-151.0,0.00017999,2]
[357630890,1744254634873,-151.0,0.00017999,2]
[357630891,1744254634883,-890.311179,0.00017999,2]
[357630892,1744254634893,-900.641796,0.00017999,2]
[357630893,1744254634903,-900.641796,0.00017999,2]
[357630894,1744254634913,-153.700593,0.00017999,2]
[357630895,1744254634924,-151.0,0.00017999,2]
[357630896,1744254634934,-151.0,0.00017999,2]
[357630897,1744254634944,-151.0,0.00017999,2]
[357630898,1744254634955,-264.641649,0.00017999,2]
[357630899,1744254634965,-264.641649,0.00017999,2]
[357630900,1744254634976,-233.058658,0.00017999,2]
[357630901,1744254634986,-151.0,0.00017999,2]
[357630902,1744254634996,-500.0,0.00017999,2]
[357630903,1744254635006,-500.0,0.00017999,2]
[357630904,1744254635016,-151.0,0.00017999,2]
[357630905,1744254635026,-406.227427,0.00017999,2]
[357630906,1744254635035,-406.227427,0.00017999,2]
[357630907,1744254635045,-500.0,0.00017999,2]
[357630908,1744254635055,-151.0,0.00017999,2]
[357630909,1744254635065,-500.0,0.00017999,2]
[357630910,1744254635074,-272.869298,0.00017999,2]
[357630911,1744254635084,-228.63915315,0.00017999,2]
[357630912,1744254635094,-152.27027965,0.00017999,2]
[357630913,1744254635103,-500.0,0.00017999,2]
[357630914,1744254635113,-500.0,0.00017999,2]
[357630915,1744254635122,-222.44789585,0.00017999,2]
[357630916,1744254635132,-189.95162691,0.00017999,2]
[357630917,1744254635142,-287.53109097,0.00017999,2]
[357630918,1744254635151,-158.08179293,0.00017999,2]
[357630919,1744254635160,-151.0,0.00017999,2]
[357630920,1744254635170,-151.0,0.00017999,2]
[357630921,1744254635180,-151.0,0.00017999,2]
[357630922,1744254635189,-523.11328125,0.00017999,2]
[357630923,1744254635199,-500.0,0.00017999,2]
[357630924,1744254635209,-226.72054206,0.00017999,2]
[357630925,1744254635219,-500.0,0.00017999,2]
[357630926,1744254635228,-500.0,0.00017999,2]
[357630927,1744254635238,-500.0,0.00017999,2]
[357630928,1744254635248,-151.0,0.00017999,2]
[357630929,1744254635258,-285.585865,0.00017999,2]
[357630930,1744254635268,-409.243856,0.00017999,2]
[357630931,1744254635277,-409.243856,0.00017999,2]
[357630932,1744254635287,-500.0,0.00017999,2]
[357630933,1744254635296,-296.00834921,0.00017999,2]
[357630934,1744254635306,-529.0,0.00017999,2]
[357630935,1744254635315,-151.02680821,0.00017999,2]
[357630936,1744254635325,-500.0,0.00017999,2]
[357630937,1744254635334,-500.0,0.00017999,2]
[357630938,1744254635344,-500.0,0.00017999,2]
[357630939,1744254635353,-289.97837391,0.00018,2]
[357630940,1744254635362,-300.0,0.00018,2]
[357630941,1744254635372,-7757.0,0.00018,2]
[357630942,1744254635381,-2225.0,0.00018,2]
[357630943,1744254635391,-857.0,0.00018,2]
[357630944,1744254635400,-151.0,0.00018,2]
[357630945,1744254635410,-151.0,0.00018,2]
[357630946,1744254635419,-158.0,0.00018,2]
[357630947,1744254635429,-158.0,0.00018,2]
[357630948,1744254635439,-151.0,0.00018,2]
[357630949,1744254635448,-303.650505,0.00018,2]
[357630950,1744254635458,-303.650502,0.00018,2]
[357630951,1744254635467,-3000.0,0.00018,2]
[357630952,1744254635477,-151.0,0.00018,2]
[357630953,1744254635486,-151.593012,0.00018,2]
[357630954,1744254635496,-610.294005,0.00018,2]
[357630955,1744254635505,-610.294005,0.00018,2]
[357630956,1744254635514,-239.646279,0.00018,2]
[357630957,1744254635524,-151.0,0.00018,2]
[357630958,1744254635534,-637.97302,0.00018,2]
[357630959,1744254635543,-637.97302,0.00018,2]
[357630960,1744254635553,-151.0,0.00018,2]
[357630961,1744254635562,-890.311179,0.00018,2]
[357630962,1744254635571,-151.0,0.00018,2]
[357630963,1744254635581,-890.311179,0.00018,2]
[357630964,1744254635590,-900.641796,0.00018,2]
[357630965,1744254635599,-900.641796,0.00018,2]
[357630966,1744254635609,-151.0,0.00018,2]
[357630967,1744254635620,-195.542181,0.00018,2]
[357630968,1744254635629,-151.0,0.00018,2]
[357630969,1744254635640,-264.641649,0.00018,2]
[357630970,1744254635653,-264.641649,0.00018,2]
[357630971,1744254635662,-151.0,0.00018,2]
[357630972,1744254635671,-151.0,0.00018,2]
[357630973,1744254635681,-406.227427,0.00018,2]
[357630974,1744254635691,-406.227427,0.00018,2]
[357630975,1744254635700,-151.0,0.00018,2]
[357630976,1744254635710,-151.0,0.00018,2]
[357630977,1744254635719,-151.0,0.00018,2]
[357630978,1744254635730,-151.0,0.00018,2]
[357630979,1744254635741,-409.243856,0.00018,2]
[357630980,1744254635750,-409.243856,0.00018,2]
[357630981,1744254635760,-1267.3512,0.00018,2]
[357630982,1744254635770,-151.0,0.00018004,2]
[357630983,1744254635779,-151.0,0.00018004,2]
[357630984,1744254635790,-890.311179,0.00018004,2]
[357630985,1744254635799,-151.0,0.00018004,2]
[357630986,1744254635810,-890.311179,0.00018004,2]
[357630987,1744254635821,-900.641796,0.00018004,2]
[357630988,1744254635830,-900.641796,0.00018004,2]
[357630989,1744254635840,-264.641649,0.00018004,2]
[357630990,1744254635850,-264.641649,0.00018004,2]
[357630991,1744254635859,-151.0,0.00018004,2]
[357630992,1744254635869,-156.763657,0.00018004,2]
[357630993,1744254635878,-406.227427,0.00018004,2]
[357630994,1744254635888,-406.227427,0.00018004,2]
[357630995,1744254635897,-151.0,0.00018004,2]
[357630996,1744254635907,-151.0,0.00018004,2]
[357630997,1744254635916,-151.0,0.00018004,2]
[357630998,1744254635927,-151.0,0.00018004,2]
[357630999,1744254635936,-409.243856,0.00018004,2]
[357631000,1744254635945,-409.243856,0.00018004,2]
[357631001,1744254635955,-3000.0,0.0001801,2]
[357631002,1744254635965,-151.0,0.0001801,2]
[357631003,1744254635974,-348.818,0.00018011,2]
[357631004,1744254635983,-181.99727922,0.00018011,2]
[357631005,1744254635994,-3000.0,0.0001802,2]
[357631006,1744254636003,-151.0,0.0001802,2]
[357631007,1744254636013,-151.0,0.0001802,2]
[357631008,1744254636023,-3000.0,0.0001803,2]
[357631009,1744254636032,-151.0,0.0001803,2]
[357631010,1744254636042,-3000.0,0.0001804,2]
[357631011,1744254636051,-3000.0,0.0001805,2]
[357631012,1744254636060,-610.294005,0.0001805,2]
[357631013,1744254636070,-610.294005,0.0001805,2]
[357631014,1744254636080,-3000.0,0.0001806,2]
[357631015,1744254636089,-3000.0,0.0001807,2]
[357631016,1744254636099,-265.39309,0.0001807,2]
[357631017,1744254636108,-406.227427,0.0001807,2]
[357631018,1744254636117,-406.227427,0.0001807,2]
[357631019,1744254636127,-151.0,0.0001807,2]
[357631020,1744254636136,-151.0,0.0001807,2]
[357631021,1744254636145,-151.0,0.0001807,2]
[357631022,1744254636155,-151.0,0.0001807,2]
[357631023,1744254636165,-409.243856,0.0001807,2]
[357631024,1744254636174,-409.243856,0.0001807,2]
[357631025,1744254636184,-3000.0,0.0001808,2]
[357631026,1744254636193,-151.0,0.0001808,2]
[357631027,1744254636203,-890.311179,0.0001808,2]
[357631028,1744254636212,-151.0,0.0001808,2]
[357631029,1744254636222,-890.311179,0.0001808,2]
[357631030,1744254636232,-900.641796,0.0001808,2]
[357631031,1744254636244,-900.641796,0.0001808,2]
[357631032,1744254636253,-264.641649,0.0001808,2]
[357631033,1744254636264,-264.641649,0.0001808,2]
[357631034,1744254636274,-600.0,0.00018087,2]
[357631035,1744254636284,-151.0,0.00018088,2]
[357631036,1744254636293,-3000.0,0.0001809,2]
[357631037,1744254636303,-151.0,0.0001809,2]
[357631038,1744254636312,-245.08784,0.0001809,2]
[357631039,1744254636322,-500.0,0.000181,2]
[357631040,1744254636332,-1510.354,0.000181,2]
[357631041,1744254636342,-3000.0,0.000181,2]
[357631042,1744254636351,-151.0,0.000181,2]
[357631043,1744254636361,-3000.0,0.0001811,2]
[357631044,1744254636370,-500.0,0.00018114,2]
[357631045,1744254636379,-151.0,0.00018115,2]
[357631046,1744254636389,-406.227427,0.00018115,2]
[357631047,1744254636399,-406.227427,0.00018115,2]
[357631048,1744254636409,-151.0,0.00018115,2]
[357631049,1744254636418,-151.0,0.00018115,2]
[357631050,1744254636428,-151.0,0.00018115,2]
[357631051,1744254636437,-151.0,0.00018115,2]
[357631052,1744254636446,-409.243856,0.00018115,2]
[357631053,1744254636456,-409.243856,0.00018115,2]
[357631054,1744254636465,-160.0,0.00018115,2]
[357631055,1744254636475,-419.64641374,0.00018115,2]
[357631056,1744254636485,-160.0,0.00018115,2]
[357631057,1744254636494,-12536.72526453,0.00018115,2]
[357631058,1744254636503,-160.0,0.00018115,2]
[357631059,1744254636513,-837.80299543,0.00018115,2]
[357631060,1744254636523,-160.0,0.00018115,2]
[357631061,1744254636532,-154.243092,0.0001812,2]
[357631062,1744254636542,-3000.0,0.0001812,2]
[357631063,1744254636551,-610.294005,0.0001812,2]
[357631064,1744254636561,-610.294005,0.0001812,2]
[357631065,1744254636570,-637.97302,0.0001812,2]
[357631066,1744254636579,-637.97302,0.0001812,2]
[357631067,1744254636589,-3000.0,0.0001813,2]
[357631068,1744254636599,-151.0,0.0001813,2]
[357631069,1744254636608,-151.0,0.0001813,2]
[357631070,1744254636618,-890.311179,0.0001813,2]
[357631071,1744254636627,-151.0,0.0001813,2]
[357631072,1744254636637,-890.311179,0.0001813,2]
[357631073,1744254636650,-900.641796,0.0001813,2]
[357631074,1744254636660,-900.641796,0.0001813,2]
[357631075,1744254636671,-264.641649,0.0001813,2]
[357631076,1744254636680,-264.641649,0.0001813,2]
[357631077,1744254636690,-3000.0,0.0001814,2]
[357631078,1744254636700,-500.0,0.0001814,2]
[357631079,1744254636711,-610.294005,0.00018141,2]
[357631080,1744254636722,-610.294005,0.00018141,2]
[357631081,1744254636731,-247.8052,0.00018141,2]
[357631082,1744254636740,-637.97302,0.00018141,2]
[357631083,1744254636750,-637.97302,0.00018141,2]
[357631084,1744254636759,-151.0,0.00018141,2]
[357631085,1744254636770,-406.227427,0.00018141,2]
[357631086,1744254636779,-406.227427,0.00018141,2]
[357631087,1744254636789,-151.0,0.00018141,2]
[357631088,1744254636799,-151.0,0.00018141,2]
[357631089,1744254636958,-151.0,0.00018141,2]
[357631090,1744254636968,-151.0,0.00018141,2]
[357631091,1744254636977,-409.243856,0.00018141,2]
[357631092,1744254636987,-409.243856,0.00018141,2]
[357631093,1744254636996,-13078.72658644,0.00018141,2]
[357631094,1744254637006,-3000.0,0.0001815,2]
[357631095,1744254637015,-151.0,0.0001815,2]
[357631096,1744254637025,-890.311179,0.0001815,2]
[357631097,1744254637034,-890.311179,0.0001815,2]
[357631098,1744254637043,-168.546639,0.00018155,2]
[357631099,1744254637053,-3000.0,0.0001816,2]
[357631100,1744254637063,-151.0,0.0001816,2]
[357631101,1744254637072,-900.641796,0.0001816,2]
[357631102,1744254637082,-900.641796,0.0001816,2]
[357631103,1744254637092,-264.641649,0.0001816,2]
[357631104,1744254637101,-264.641649,0.0001816,2]
[357631105,1744254637111,-406.227427,0.0001816,2]
[357631106,1744254637121,-406.227427,0.0001816,2]
[357631107,1744254637130,-151.0,0.0001816,2]
[357631108,1744254637140,-151.0,0.0001816,2]
[357631109,1744254637150,-162.03653,0.0001816,2]
[357631110,1744254637159,-151.0,0.0001816,2]
[357631111,1744254637168,-409.243856,0.0001816,2]
[357631112,1744254637178,-409.243856,0.0001816,2]
[357631113,1744254637187,-151.0,0.00018164,2]
[357631114,1744254637197,-151.0,0.00018164,2]
[357631115,1744254637207,-610.294005,0.00018164,2]
[357631116,1744254637216,-610.294005,0.00018164,2]
[357631117,1744254637226,-637.97302,0.00018164,2]
[357631118,1744254637235,-637.97302,0.00018164,2]
[357631119,1744254637245,-3000.0,0.0001817,2]
[357631120,1744254637254,-151.0,0.0001817,2]
[357631121,1744254637263,-890.311179,0.0001817,2]
[357631122,1744254637273,-890.311179,0.0001817,2]
[357631123,1744254637283,-3000.0,0.0001818,2]
[357631124,1744254637292,-3000.0,0.0001819,2]
[357631125,1744254637302,-151.0,0.000182,2]
[357631126,1744254637311,-3000.0,0.000182,2]
[357631127,1744254637321,-406.227427,0.000182,2]
[357631128,1744254637331,-406.227427,0.000182,2]
[357631129,1744254637341,-151.0,0.000182,2]
[357631130,1744254637350,-409.243856,0.000182,2]
[357631131,1744254637361,-409.243856,0.000182,2]
[357631132,1744254637380,-3000.0,0.0001821,2]
[357631133,1744254637392,-637.97302,0.0001821,2]
[357631134,1744254637403,-637.97302,0.0001821,2]
[357631135,1744254637413,-151.0,0.0001821,2]
[357631136,1744254637423,-151.0,0.0001821,2]
[357631137,1744254637434,-151.0,0.0001821,2]
[357631138,1744254637446,-3000.0,0.0001822,2]
[357631139,1744254637456,-610.294005,0.0001822,2]
[357631140,1744254637467,-610.294005,0.0001822,2]
[357631141,1744254637477,-3000.0,0.0001823,2]
[357631142,1744254637487,-151.0,0.0001823,2]
[357631143,1744254637497,-900.641796,0.0001823,2]
[357631144,1744254637507,-900.641796,0.0001823,2]
[357631145,1744254637516,-264.641649,0.0001823,2]
[357631146,1744254637526,-264.641649,0.0001823,2]
[357631147,1744254637536,-3000.0,0.0001824,2]
[357631148,1744254637546,-279.576188,0.0001824,2]
[357631149,1744254637555,-890.311179,0.0001824,2]
[357631150,1744254637564,-890.311183,0.0001824,2]
[357631151,1744254637574,-839.57848752,0.0001825,2]
[357631168,1744254639491,-500.0,0.00016299,2]
[357631169,1744254639502,-639.99999999,0.00016299,2]
[357631170,1744254639513,-430.06953017,0.00016299,2]
[357631171,1744254639524,-500.0,0.00016299,2]
[357631172,1744254639534,-501.33750327,0.00016438,2]
[357631173,1744254639544,-151.0,0.000179,2]
[357631174,1744254639554,-500.0,0.00017999,2]
[357631175,1744254639565,-244.90860113,0.00018159,2]
[357631176,1744254639575,-2160.42151248,0.0001825,2]
[357631177,1744254639585,-406.227427,0.0001825,2]
[357631178,1744254639595,-406.227424,0.0001825,2]
[357631179,1744254639605,-151.0,0.0001825,2]
[357631180,1744254639615,-409.243856,0.0001825,2]
[357631181,1744254639625,-409.243852,0.0001825,2]
[357631182,1744254639637,-3000.0,0.0001826,2]
[357631183,1744254639648,-151.0,0.0001826,2]
[357631184,1744254639659,-151.0,0.0001826,2]
[357631185,1744254639668,-3000.0,0.0001827,2]
[357631186,1744254639678,-151.0,0.0001827,2]
[357631187,1744254639687,-600.0,0.00018271,2]
[357631188,1744254639699,-151.0,0.00018279,2]
[357631189,1744254639709,-151.0,0.00018279,2]
[357631190,1744254639719,-3000.0,0.0001828,2]
[357631191,1744254639729,-637.97302,0.0001828,2]
[357631192,1744254639740,-637.97302,0.0001828,2]
[357631193,1744254639750,-3000.0,0.0001829,2]
[357631194,1744254639760,-610.294005,0.0001829,2]
[357631195,1744254639769,-610.294008,0.0001829,2]
[357631196,1744254639779,-3000.0,0.000183,2]
[357631197,1744254639789,-151.0,0.000183,2]
[357631198,1744254639799,-151.0,0.000183,2]
[357631199,1744254639808,-900.641796,0.000183,2]
[357631200,1744254639818,-414.46853856,0.000183,2]
[357631201,1744254639831,-486.17325744,0.000183,2]
[357631202,1744254639841,-42.72383374,0.000183,2]
[357631207,1744254640960,-151.0,0.00017999,2]
[357631208,1744254640971,-151.0,0.00018,2]
[357631209,1744254640980,-0.38100002,0.00018004,2]
[357631210,1744254641015,-150.61899998,0.00018004,2]
[357631211,1744254641024,-151.0,0.0001806,2]
[357631212,1744254641034,-234.75551798,0.00018299,2]
[357631213,1744254641043,-244.90860113,0.00018299,2]
[357631214,1744254641053,-221.91781526,0.000183,2]
[357631215,1744254641063,-264.641649,0.000183,2]
[357631216,1744254641073,-151.0,0.000183,2]
[357631217,1744254641083,-3000.0,0.0001831,2]
[357631218,1744254641092,-3000.0,0.0001832,2]
[357631219,1744254641102,-3000.0,0.0001833,2]
[357631220,1744254641112,-156.6949557,0.00018337,2]
[357631221,1744254641122,-156.6949557,0.00018337,2]
[357631222,1744254641132,-156.6949557,0.00018337,2]
[357631223,1744254641142,-156.6949557,0.00018337,2]
[357631224,1744254641153,-156.6949557,0.00018337,2]
[357631225,1744254641162,-463.2852053,0.00018337,2]
[357631226,1744254641172,-3000.0,0.0001834,2]
[357631227,1744254641182,-3000.0,0.0001835,2]
[357631228,1744254641191,-637.97302,0.0001835,2]
[357631229,1744254641201,-637.973028,0.0001835,2]
[357631230,1744254641210,-151.0,0.00018353,2]
[357631231,1744254641219,-176.338531,0.00018353,2]
[357631232,1744254641230,-900.641796,0.00018353,2]
[357631233,1744254641240,-900.641787,0.00018353,2]
[357631234,1744254641249,-264.641649,0.00018353,2]
[357631235,1744254641259,-264.64164556,0.00018353,2]
[357631236,1744254641269,-8909.68736165,0.00018353,2]
[357631237,1744254641279,-3000.0,0.0001836,2]
[357631238,1744254641289,-3000.0,0.0001837,2]
[357631239,1744254641299,-151.0,0.0001838,2]
[357631240,1744254641309,-151.0,0.0001838,2]
[357631241,1744254641318,-3000.0,0.0001838,2]
[357631242,1744254641328,-499.99609375,0.00018382,2]
[357631243,1744254641338,-3000.0,0.0001839,2]
[357631244,1744254641348,-3000.0,0.000184,2]
[357631245,1744254641358,-3000.0,0.0001841,2]
[357631246,1744254641367,-2789.0764509,0.0001842,2]
[357631295,1744254646830,-151.0,0.000179,2]
[357631296,1744254646840,-151.0,0.000179,2]
[357631297,1744254646850,-500.0,0.00017999,2]
[357631298,1744254646860,-151.0,0.00017999,2]
[357631299,1744254646869,-151.0,0.00017999,2]
[357631300,1744254646879,-151.0,0.00018,2]
[357631301,1744254646889,-151.0,0.00018004,2]
[357631302,1744254646899,-151.0,0.0001806,2]
[357631303,1744254646908,-83.0,0.0001811,2]
[357631304,1744254646920,-68.0,0.0001811,2]
[357631305,1744254646930,-151.0,0.0001811,2]
[357631306,1744254646940,-151.0,0.0001812,2]
[357631307,1744254646950,-151.0,0.00018141,2]
[357631308,1744254646960,-151.0,0.0001818,2]
[357631309,1744254646969,-151.0,0.0001823,2]
[357631310,1744254646979,-234.75551798,0.00018419,2]
[357631311,1744254646990,-244.90860113,0.00018419,2]